bitfinex/quotes_ETHUSD_20241124
["timestamp","ask_amount","ask_price","bid_price","bid_amount"]
[1732430765800,0.98891019,3411.7,3410.6,0.764]
[1732430766006,0.05463306,3411.2,3410.6,0.764]
[1732430766181,0.98891019,3411.7,3410.6,0.764]
[1732430767013,0.05463306,3411.6,3410.6,0.764]
[1732430770584,0.05463306,3411.6,3410.7,0.02931444]
[1732430770825,0.05463306,3411.6,3410.8,0.83]
[1732430771125,0.05466616,3411.5,3410.8,0.83]
[1732430771308,0.98891019,3412.0,3410.8,0.83]
[1732430771515,0.32830884,3411.9,3410.8,0.83]
[1732430771725,0.05466616,3411.9,3410.8,0.83]
[1732430773289,0.98891019,3411.8,3410.8,0.83]
[1732430773532,0.0547276,3411.7,3410.8,0.83]
[1732430775640,0.98891019,3412.0,3410.8,0.83]
[1732430775931,0.55,3412.1,3410.8,0.83]
[1732430776107,0.32834182,3412.0,3411.0,0.79]
[1732430776309,0.05473233,3412.0,3411.0,0.79]
[1732430776692,0.05473233,3412.0,3411.2,0.79]
[1732430776894,1.13913179,3412.2,3411.2,0.79]
[1732430777138,0.32831085,3412.1,3411.2,0.79]
[1732430777292,0.05473233,3412.1,3411.2,0.79]
[1732430781633,0.05473233,3412.1,3411.2,0.81930873]
[1732430782329,0.05473233,3412.1,3411.2,0.79]
[1732430782708,1.04364252,3412.1,3411.2,0.79]
[1732430786147,0.05473233,3412.1,3411.2,0.79]
[1732430792671,0.05473233,3412.1,3411.3,0.81930884]
[1732430792875,0.05473233,3412.1,3411.3,0.79]
[1732430794139,0.05473233,3412.1,3411.8,0.00139315]
[1732430794340,0.05473233,3412.1,3411.9,0.79]
[1732430796037,1.6178,3414.3,3412.1,0.7596]
[1732430796236,0.71037555,3414.2,3412.3,0.7596]
[1732430796544,0.79,3414.3,3412.6,0.7596]
[1732430796739,1.81671019,3414.6,3412.8,0.7596]
[1732430796952,1.81671019,3414.6,3413.0,0.7596]
[1732430797280,1.81671019,3414.9,3413.2,0.7596]
[1732430797452,0.98891019,3414.9,3413.4,0.7596]
[1732430798262,0.98891019,3414.9,3413.6,0.7596]
[1732430798463,0.98891019,3414.6,3413.6,0.7596]
[1732430798666,2.24250025,3415.0,3413.6,0.7596]
[1732430798867,3.0,3414.9,3413.6,0.7596]
[1732430799056,2.24250025,3415.0,3413.6,0.7596]
[1732430799242,2.24250025,3414.6,3413.6,0.7596]
[1732430800740,3.8278,3414.5,3413.6,0.7596]
[1732430802183,0.8278,3414.5,3413.6,0.7596]
[1732430803396,3.55,3414.7,3413.6,0.7596]
[1732430803678,0.05365413,3414.4,3413.7,0.7888931]
[1732430803879,0.051874,3414.6,3413.7,0.7888931]
[1732430804079,0.1502216,3415.6,3413.7,0.7888931]
[1732430804597,0.05015815,3415.5,3413.7,0.7888931]
[1732430805151,0.55,3415.4,3413.8,0.78888306]
[1732430805386,0.55,3415.5,3413.8,0.78888306]
[1732430805681,0.05015815,3415.3,3413.8,0.78888306]
[1732430805882,0.55,3415.5,3413.8,0.78888306]
[1732430806381,0.55,3415.3,3413.8,0.78888306]
[1732430806882,0.55,3415.5,3413.8,0.78888306]
[1732430807348,0.55,3415.3,3413.8,0.78888306]
[1732430807681,0.55,3415.5,3413.8,0.78888306]
[1732430807883,0.05015815,3415.2,3413.8,0.78888306]
[1732430808088,0.55,3415.5,3413.8,0.7596]
[1732430808594,0.55,3415.3,3413.8,0.7596]
[1732430808957,0.55,3415.5,3413.8,0.7596]
[1732430809280,0.55,3415.3,3415.0,0.00139315]
[1732430809781,0.55,3415.1,3415.0,0.00139315]
[1732430810660,1.36665815,3415.1,3415.0,0.00139315]
[1732430811556,0.57935535,3415.1,3415.0,0.00139315]
[1732430814259,1.17541455,3415.1,3415.0,0.00139315]
[1732430814456,0.7735468,3415.1,3415.0,0.00139315]
[1732430815500,0.2443496,3415.1,3415.0,0.00139315]
[1732430815672,0.05015815,3415.1,3415.0,0.00139315]
[1732430815999,0.55,3415.3,3415.0,0.00139315]
[1732430816302,0.05027455,3415.1,3415.0,0.79409315]
[1732430816463,0.55,3415.5,3415.0,0.79409315]
[1732430816666,0.05027455,3415.1,3415.0,0.79409315]
[1732430816904,0.55,3415.5,3415.0,0.79409315]
[1732430817069,0.05027455,3415.1,3415.0,0.79409315]
[1732430817269,0.20624886,3415.4,3415.0,0.79409315]
[1732430817477,0.05027455,3415.1,3415.0,0.79409315]
[1732430817777,0.05035318,3415.1,3415.0,0.79409315]
[1732430817978,0.74598861,3415.6,3415.0,0.79409315]
[1732430818179,0.05035318,3415.1,3415.0,0.79409315]
[1732430818499,0.74598861,3415.6,3415.0,0.79409315]
[1732430818704,0.05035318,3415.1,3415.0,0.79409315]
[1732430818875,0.74598861,3415.6,3415.0,0.79409315]
[1732430819067,0.05035318,3415.1,3415.0,0.79409315]
[1732430819264,0.74598861,3415.6,3415.0,0.79409315]
[1732430819501,0.0503516,3415.1,3415.0,0.79409315]
[1732430819669,0.74598861,3415.6,3415.0,0.79409315]
[1732430819869,0.0503516,3415.1,3415.0,0.79409315]
[1732430820108,0.74598861,3415.6,3415.0,0.79409315]
[1732430820373,0.0503516,3415.1,3415.0,0.79409315]
[1732430820518,0.55,3415.5,3415.0,0.79409315]
[1732430820812,0.60036261,3415.5,3415.0,0.00139315]
[1732430822609,0.8134,3415.4,3415.0,0.00139315]
[1732430822923,0.55,3415.3,3415.0,0.00139315]
[1732430823439,0.8134,3415.4,3415.0,0.00139315]
[1732430823440,0.55,3415.1,3415.0,0.00139315]
[1732430823779,0.55,3415.3,3415.0,0.00139315]
[1732430824115,0.55,3415.1,3415.0,0.00139315]
[1732430824528,0.60036261,3415.1,3415.0,0.00139315]
[1732430825428,0.05036261,3415.1,3415.0,0.00139315]
[1732430825937,0.55,3415.5,3415.1,0.7927]
[1732430826242,0.05034687,3415.4,3415.1,0.7927]
[1732430827189,0.05034687,3415.4,3415.0,0.00139315]
[1732430830122,0.55,3415.3,3415.0,0.00139315]
[1732430830341,0.05037674,3415.2,3415.0,0.00139315]
[1732430830630,0.7507,3415.2,3415.0,0.00139315]
[1732430830824,0.05037674,3415.1,3415.0,0.00139315]
[1732430831950,0.1502216,3415.6,3415.1,0.7949]
[1732430832116,0.1502216,3415.6,3415.1,0.9812163]
[1732430832458,0.1502216,3415.6,3415.2,0.7949]
[1732430832603,0.1502216,3415.6,3415.3,0.20702523]
[1732430832810,0.1502216,3415.6,3415.4,0.7949]
[1732430836745,0.1502216,3415.6,3415.5,0.95193813]
[1732430836918,0.1502216,3415.6,3415.5,1.70873813]
[1732430837123,0.1502216,3415.6,3415.5,1.87961194]
[1732430837750,0.1502216,3415.6,3415.5,1.41956674]
[1732430841526,0.1502216,3415.6,3415.5,0.92767381]
[1732430841856,0.1502216,3415.6,3415.5,0.7568]
[1732430845135,0.7722,3417.2,3415.5,0.7568]
[1732430845339,0.7722,3417.2,3415.6,0.78607009]
[1732430845713,0.7722,3417.2,3415.7,0.7568]
[1732430845914,0.0470385,3417.1,3416.3,2.87]
[1732430846115,0.0192658,3417.5,3416.4,0.78606669]
[1732430846367,0.0192658,3417.5,3416.5,0.7568]
[1732430846533,0.0192658,3417.5,3416.6,0.78605852]
[1732430851987,0.04788323,3417.4,3416.6,0.78605852]
[1732430852786,0.7722,3420.1,3417.9,1.3068]
[1732430852941,2.83180796,3419.9,3418.0,0.7860447]
[1732430853141,2.23959197,3419.9,3418.2,0.7568]
[1732430853375,2.23959197,3419.9,3418.4,0.7568]
[1732430853578,2.23959197,3419.9,3418.5,0.02924638]
[1732430854478,2.23959197,3419.9,3418.4,0.7568]
[1732430854479,2.23959197,3419.9,3418.4,0.78604478]
[1732430855456,3.0,3419.8,3418.5,0.02924487]
[1732430855696,2.23959197,3419.9,3418.5,0.02924487]
[1732430856063,2.23959197,3419.9,3418.4,0.7568]
[1732430856392,2.23959197,3419.9,3418.5,0.02924792]
[1732430856595,2.23959197,3419.9,3418.6,0.7824]
[1732430856910,2.23959197,3419.9,3418.7,0.02924393]
[1732430857365,2.23959197,3420.4,3418.8,0.7824]
[1732430857566,2.23959197,3420.4,3418.9,0.02924358]
[1732430857761,2.23959197,3420.4,3418.9,0.81164358]
[1732430858976,5.23959197,3420.4,3418.9,0.7824]
[1732430859708,1.41352137,3420.5,3418.9,0.7824]
[1732430859709,0.824,3419.8,3418.9,0.7824]
[1732430860091,0.824,3420.4,3418.9,0.7824]
[1732430860291,3.824,3420.4,3418.9,0.7824]
[1732430861565,2.23959197,3420.5,3418.9,0.7824]
[1732430861780,0.824,3420.3,3418.9,0.7824]
[1732430862987,0.824,3420.3,3418.9,1.17980624]
[1732430865471,0.824,3420.6,3418.9,1.60513597]
[1732430865918,0.7637,3422.9,3419.6,0.1]
[1732430866129,2.23959197,3422.0,3420.0,0.8265]
[1732430866289,0.7637,3421.8,3420.1,0.0292299]
[1732430866622,0.04392024,3421.7,3420.1,0.0292299]
[1732430866792,0.7637,3421.6,3420.1,0.0292299]
[1732430867001,2.23959197,3421.2,3419.9,2.87]
[1732430867193,0.7637,3421.0,3419.9,2.87]
[1732430867423,3.00329197,3422.1,3420.0,0.85573509]
[1732430867643,0.04392024,3420.9,3420.0,0.85573509]
[1732430867925,0.7637,3422.0,3420.1,0.41994945]
[1732430868132,0.7637,3422.0,3420.2,0.02922965]
[1732430868300,0.04392024,3421.9,3420.2,0.02922965]
[1732430868629,0.04392024,3421.9,3420.3,0.8265]
[1732430868789,0.04392024,3421.9,3420.5,0.8265]
[1732430868986,0.1502216,3422.4,3420.6,0.02922336]
[1732430869200,0.04392024,3422.3,3420.6,0.02922336]
[1732430869431,0.04392024,3422.3,3420.6,0.50298279]
[1732430869721,0.7637,3422.2,3420.6,0.50298279]
[1732430870023,0.91792372,3422.2,3420.7,0.8265]
[1732430870226,0.04392024,3422.1,3420.8,0.02922202]
[1732430872186,0.04392024,3422.1,3420.7,0.85572195]
[1732430872187,0.7637,3422.0,3420.7,0.85572195]
[1732430872400,0.04419454,3421.9,3420.7,0.85572195]
[1732430876098,0.04419454,3421.9,3420.7,1.29948138]
[1732430876521,0.04419454,3421.9,3420.7,0.85572195]
[1732430876749,0.04419454,3421.9,3420.8,0.44375943]
[1732430876927,0.04419454,3421.9,3420.9,0.02922122]
[1732430878792,0.7687,3421.8,3420.9,0.02922122]
[1732430879103,0.04451926,3421.7,3420.7,0.02922481]
[1732430879416,0.7687,3421.6,3420.4,0.029229]
[1732430879732,0.04451926,3421.5,3420.4,0.029229]
[1732430880120,0.7687,3421.4,3420.4,0.029229]
[1732430880320,0.7687,3421.4,3419.8,0.43152019]
[1732430880321,0.7687,3421.4,3419.8,0.02923029]
[1732430880571,0.7687,3421.2,3419.7,5.73923301]
[1732430880870,0.04443417,3421.1,3419.7,5.73923301]
[1732430881074,0.7687,3421.0,3419.7,5.73923301]
[1732430881254,0.7687,3421.0,3419.8,0.61707532]
[1732430881454,0.7687,3420.8,3419.7,2.88923301]
[1732430881857,0.04439477,3420.7,3419.7,2.88923301]
[1732430882858,0.7687,3420.6,3419.7,2.86]
[1732430883165,0.04439477,3420.7,3420.1,0.7707]
[1732430883325,0.04288079,3420.5,3420.2,0.02922381]
[1732430883529,2.23959197,3422.6,3420.3,0.7707]
[1732430883729,0.38920296,3422.4,3420.4,0.02922449]
[1732430883962,0.04273452,3422.3,3420.4,0.02922449]
[1732430884171,0.04273452,3422.3,3420.5,0.7707]
[1732430884371,0.04273452,3422.3,3420.7,0.7707]
[1732430884571,0.04273452,3422.3,3420.8,0.0292223]
[1732430885946,2.23959197,3422.2,3420.6,0.0292244]
[1732430886145,0.605,3422.1,3420.6,0.0292244]
[1732430886357,0.64792255,3422.1,3420.6,0.46074459]
[1732430886966,0.64792255,3422.1,3420.6,0.0292244]
[1732430887144,0.64792255,3422.1,3420.7,0.0292277]
[1732430887549,0.64792255,3422.1,3420.8,0.7707]
[1732430887746,0.64792255,3422.1,3420.9,0.02922456]
[1732430888878,0.64792255,3422.1,3420.6,0.0292244]
[1732430890131,0.64792255,3422.1,3420.7,0.7707]
[1732430890332,0.64792255,3422.1,3420.8,0.02922423]
[1732430892571,0.64792255,3422.1,3420.7,0.02922429]
[1732430894054,0.64792255,3422.1,3420.5,0.02922797]
[1732430895461,0.64792255,3422.1,3420.6,0.7707]
[1732430895661,0.64792255,3422.1,3420.7,0.02922797]
[1732430895859,0.64792255,3422.1,3420.8,0.7898]
[1732430896176,0.64792255,3422.1,3420.9,0.02922797]
[1732430898965,0.6465294,3422.1,3420.9,0.02922797]
[1732430899476,0.6465294,3422.1,3421.0,1.22132019]
[1732430899679,0.6465294,3422.1,3421.1,0.02922126]
[1732430900277,0.04292255,3422.1,3421.2,0.7898]
[1732430900487,0.1502216,3422.4,3421.3,0.02922097]
[1732430900665,0.04299052,3422.0,3421.3,0.02922097]
[1732430901187,0.1502216,3422.4,3421.3,0.02922097]
[1732430901681,0.04299052,3422.3,3421.3,0.02922097]
[1732430902175,0.6036,3422.2,3421.0,0.02922132]
[1732430902360,0.6036,3422.2,3420.9,2.88922708]
[1732430902539,0.6036,3422.0,3420.9,2.86]
[1732430903177,0.04306161,3421.9,3420.9,2.86]
[1732430903344,0.6036,3421.8,3420.9,2.86]
[1732430904045,0.6036,3421.6,3420.9,2.86]
[1732430906445,0.6036,3421.6,3421.0,0.02922689]
[1732430906645,0.6036,3421.9,3421.1,0.7898]
[1732430906890,0.6036,3421.9,3421.2,0.36790269]
[1732430907182,0.6036,3421.9,3421.3,0.02922145]
[1732430907957,0.6036,3421.9,3421.3,0.02922146]
[1732430908157,0.1502216,3422.4,3421.3,0.02922146]
[1732430908158,0.6036,3422.3,3421.3,0.02922146]
[1732430908588,0.6036,3422.3,3421.2,0.39712312]
[1732430908788,0.043,3422.2,3421.2,0.39712312]
[1732430909081,0.6036,3422.3,3421.2,0.39712312]
[1732430909444,0.04306163,3422.2,3421.2,0.39712312]
[1732430909881,0.6036,3422.3,3421.2,0.39712312]
[1732430910256,0.04306163,3422.2,3421.2,0.39712312]
[1732430910458,0.6036,3422.3,3421.2,0.39712312]
[1732430910889,0.04311219,3422.2,3421.2,0.39712312]
[1732430911250,0.6036,3422.1,3421.2,0.39712312]
[1732430911847,0.7538216,3422.4,3421.2,0.39712312]
[1732430912077,0.04312008,3422.0,3421.2,0.39712312]
[1732430912259,0.7538216,3422.4,3421.2,0.39712312]
[1732430912673,0.04312008,3422.3,3421.2,0.39712312]
[1732430913650,0.04312008,3422.3,3421.2,0.36790269]
[1732430913851,0.04312008,3422.3,3421.2,0.39712361]
[1732430914996,0.04312008,3422.3,3421.3,0.8142]
[1732430916292,0.6036,3422.2,3421.3,0.8142]
[1732430916808,0.6036,3422.1,3420.9,2.86]
[1732430916965,0.64672008,3422.1,3420.9,2.86]
[1732430919083,0.64672008,3422.1,3420.6,0.02922776]
[1732430919305,0.64672008,3422.1,3420.5,0.45264038]
[1732430919803,3.0,3421.8,3420.2,0.4234121]
[1732430920006,0.6036,3421.7,3420.2,0.4234121]
[1732430920209,0.64668059,3421.7,3420.2,0.45264276]
[1732430921006,0.64668059,3421.7,3420.2,0.4234121]
[1732430921562,2.23959197,3421.5,3420.2,0.4234121]
[1732430921767,3.6036,3421.4,3420.2,0.4234121]
[1732430922182,0.04308059,3421.3,3420.3,0.02923351]
[1732430922488,0.6036,3421.2,3420.2,0.4234121]
[1732430922673,0.6036,3421.2,3420.1,0.7958]
[1732430922868,0.04308059,3421.1,3420.1,0.7958]
[1732430923712,0.04308059,3421.1,3420.2,0.45264724]
[1732430924002,0.04308059,3421.1,3420.2,0.85493229]
[1732430924206,0.04308059,3421.1,3420.2,0.4234121]
[1732430924379,0.04308059,3421.1,3420.1,0.7958]
[1732430924967,0.6036,3421.0,3420.1,0.7958]
[1732430925422,0.04293996,3420.9,3420.1,0.7958]
[1732430930416,0.04293996,3420.9,3419.9,0.02923405]
[1732430932179,0.6036,3420.8,3419.6,0.78163451]
[1732430932381,0.6036,3420.8,3419.6,1.10730905]
[1732430932693,0.04283726,3420.7,3419.6,1.10730905]
[1732430932894,0.55,3421.3,3419.6,1.10730905]
[1732430933158,0.6036,3421.1,3419.7,0.3967309]
[1732430933794,0.6036,3420.9,3419.7,0.3967309]
[1732430934308,2.23959197,3421.2,3419.7,0.3967309]
[1732430934309,0.6036,3420.7,3419.7,0.3967309]
[1732430934519,0.6036,3420.7,3419.4,0.02923692]
[1732430935030,0.04283726,3420.6,3419.4,0.02923692]
[1732430935693,0.6036,3420.5,3419.4,0.02923692]
[1732430935893,0.64630291,3420.5,3419.4,0.02923692]
[1732430938192,0.64630291,3420.5,3419.3,0.78163866]
[1732430938927,0.64630291,3420.5,3419.3,0.7524]
[1732430939105,0.64630291,3420.5,3419.1,0.8129391]
[1732430939304,0.64630291,3420.5,3419.2,0.35898366]
[1732430940421,0.6036,3420.1,3419.0,0.30385208]
[1732430940752,0.6036,3419.9,3419.1,0.02924654]
[1732430941114,0.04263493,3419.8,3419.1,0.02924654]
[1732430941652,0.04263493,3419.8,3419.0,0.7837]
[1732430941958,0.04263493,3419.8,3419.1,0.02924278]
[1732430942107,0.6036,3419.9,3419.1,0.02924278]
[1732430943449,0.6036,3420.2,3419.1,0.02924278]
[1732430943741,0.04263019,3420.1,3419.1,0.02924278]
[1732430944470,0.04263019,3420.1,3419.2,0.7837]
[1732430944750,0.04263019,3420.0,3419.3,0.02923973]
[1732430944950,0.6036,3420.2,3419.3,0.02923973]
[1732430945167,0.04263019,3419.9,3419.3,0.02923973]
[1732430945519,0.6036,3420.2,3419.3,0.02923973]
[1732430945944,0.04263019,3420.1,3419.3,0.02923973]
[1732430949756,0.6036,3420.2,3419.3,0.02923973]
[1732430949944,0.04261595,3420.0,3419.3,0.02923973]
[1732430950143,0.6036,3420.7,3419.4,0.7837]
[1732430950344,0.6036,3420.7,3418.7,0.35107876]
[1732430950345,0.04261595,3419.9,3419.6,0.7837]
[1732430950524,0.6036,3420.7,3419.8,0.7837]
[1732430950729,0.6036,3420.7,3419.9,0.02923442]
[1732430951257,0.6036,3420.7,3419.8,0.7837]
[1732430952137,0.6036,3420.7,3419.4,0.7837]
[1732430952340,0.6036,3420.7,3419.5,0.02923732]
[1732430954379,0.6036,3420.7,3419.6,0.7837]
[1732430954675,0.6036,3420.7,3419.7,0.02923435]
[1732430955039,0.6036,3421.0,3419.7,0.02923435]
[1732430955240,0.6036,3421.6,3419.8,0.7837]
[1732430955445,0.6036,3421.6,3419.9,0.8129312]
[1732430955881,0.6036,3421.6,3419.9,0.81292918]
[1732430958098,2.84319197,3421.4,3419.9,0.81292918]
[1732430958272,0.6036,3421.3,3419.9,0.81292918]
[1732430958601,0.64497553,3421.2,3419.7,1.06092344]
[1732430958885,0.6036,3420.9,3419.7,1.06092344]
[1732430959665,0.04134542,3420.8,3419.7,1.06092344]
[1732430960268,0.04134542,3420.8,3419.7,1.0901619]
[1732430960578,2.23959197,3421.3,3419.7,1.0901619]
[1732430960772,0.04132482,3420.7,3419.8,0.39601619]
[1732430960973,0.2239592,3421.2,3419.8,0.39601619]
[1732430961191,0.04132482,3420.6,3419.8,0.39601619]
[1732430961392,3.2239592,3421.2,3419.8,0.39601619]
[1732430961614,0.04132482,3420.5,3419.8,0.39601619]
[1732430961814,2.23959197,3421.3,3419.8,0.39601619]
[1732430962105,0.04131214,3421.2,3419.8,0.39601619]
[1732430962308,0.04131214,3421.2,3420.0,0.771]
[1732430962476,0.26940255,3421.2,3420.1,0.02923573]
[1732430962685,0.5226,3421.1,3420.0,0.771]
[1732430963071,0.04131214,3421.0,3420.0,0.771]
[1732430964318,0.5226,3420.9,3420.0,0.771]
[1732430964498,0.03995412,3420.9,3420.1,0.80023599]
[1732430964664,0.5226,3421.5,3420.1,0.80023599]
[1732430964869,0.03995412,3421.4,3420.1,0.80023599]
[1732430967811,0.5226,3422.0,3420.1,0.80023599]
[1732430968012,0.04000177,3421.3,3420.1,0.80023599]
[1732430968195,0.5226,3422.0,3420.1,0.80023599]
[1732430968600,0.04003037,3421.9,3420.1,0.80023599]
[1732430969410,0.5226,3421.8,3420.1,0.80023599]
[1732430969611,0.5626526,3421.8,3420.1,0.80023599]
[1732430970676,0.5626526,3421.8,3420.2,0.771]
[1732430970895,0.5226,3421.6,3420.2,0.771]
[1732430971512,0.0400526,3421.5,3420.2,0.771]
[1732430971813,0.0400526,3421.5,3420.4,0.771]
[1732430972000,0.0400526,3421.5,3419.8,0.39601619]
[1732430972001,0.0400526,3421.5,3420.6,0.771]
[1732430973699,0.5226,3421.8,3420.6,0.771]
[1732430973900,0.03877009,3421.7,3420.8,0.771]
[1732430974101,0.5226,3422.1,3421.0,0.771]
[1732430974307,0.03877009,3422.0,3421.0,0.771]
[1732430979693,0.5226,3421.8,3421.0,0.771]
[1732430979884,0.0387892,3421.7,3421.0,0.771]
[1732430980992,0.03749623,3421.6,3421.0,0.771]
[1732430981194,0.4113892,3421.8,3421.0,0.771]
[1732430981389,0.03748986,3421.5,3421.0,0.771]
[1732430981591,0.4113892,3421.8,3421.0,0.771]
[1732430981791,0.03748986,3421.4,3421.0,0.771]
[1732430981992,0.4113892,3421.8,3421.0,0.771]
[1732430982196,0.03748508,3421.3,3421.0,0.771]
[1732430982498,0.03748508,3421.2,3421.0,0.771]
[1732430982700,2.23959197,3422.3,3421.0,0.771]
[1732430982897,0.03748508,3422.2,3421.0,0.771]
[1732430983100,3.03748508,3422.2,3421.0,0.771]
[1732430983904,0.4114,3422.1,3421.0,0.771]
[1732430984220,0.03749782,3422.0,3421.0,0.771]
[1732430984832,0.55,3421.9,3421.0,0.771]
[1732430985192,0.55,3422.0,3421.0,0.771]
[1732430985416,0.03749782,3421.8,3421.0,0.771]
[1732430985603,0.55,3422.0,3421.0,0.771]
[1732430985806,0.03749782,3421.7,3421.0,0.771]
[1732430986091,0.03749782,3421.6,3421.0,0.771]
[1732430986315,0.55,3422.0,3421.0,0.771]
[1732430986487,0.03749782,3421.9,3421.0,0.771]
[1732430986687,0.4114,3422.1,3421.0,0.771]
[1732430986888,0.03749782,3422.0,3421.0,0.771]
[1732430987711,0.4114,3421.9,3421.0,0.771]
[1732430987998,0.03751533,3421.8,3421.0,0.771]
[1732430992006,0.4114,3422.1,3421.0,0.771]
[1732430992512,0.03748348,3422.0,3421.0,0.771]
[1732430996448,0.4114,3422.5,3421.0,0.771]
[1732430997053,0.03626937,3422.3,3421.0,0.771]
[1732431001827,0.03626937,3422.3,3421.2,0.8171]
[1732431002043,0.03626937,3422.3,3421.3,0.8463224]
[1732431002365,0.1502216,3422.4,3421.3,0.8171]
[1732431002956,0.03515974,3422.3,3421.3,0.8171]
[1732431009562,2.64333398,3422.2,3421.3,0.8171]
[1732431009763,2.64333398,3422.2,3421.1,0.7834]
[1732431009964,0.03519971,3422.1,3421.1,0.7834]
[1732431010179,0.03519971,3422.1,3420.7,0.7834]
[1732431010180,2.23193398,3421.8,3420.7,0.7834]
[1732431010688,0.03511657,3421.7,3420.7,0.7834]
[1732431011579,0.55,3421.6,3420.7,0.7834]
[1732431011782,0.55,3421.4,3420.7,0.7834]
[1732431012365,0.03506539,3421.3,3420.7,0.7834]
[1732431015597,0.4114,3421.5,3420.7,0.7834]
[1732431015776,0.03506539,3421.2,3420.7,0.7834]
[1732431015978,0.4114,3421.5,3420.7,0.7834]
[1732431016181,0.03506539,3421.1,3420.7,0.7834]
[1732431016372,0.4114,3421.5,3420.7,0.7834]
[1732431016373,2.78193398,3421.4,3420.7,0.7834]
[1732431016713,0.03491667,3421.0,3419.8,0.8181]
[1732431016914,2.78193398,3421.4,3419.8,0.8181]
[1732431017203,2.78193398,3421.4,3419.9,0.8181]
[1732431017385,0.55,3421.2,3419.9,0.8181]
[1732431017901,0.55,3421.3,3419.9,0.8181]
[1732431018502,0.03492787,3421.2,3419.9,0.8181]
[1732431019504,0.03492787,3421.2,3420.0,0.84733762]
[1732431019704,0.03492787,3421.2,3420.2,0.8181]
[1732431020032,2.64333398,3422.2,3420.4,0.8181]
[1732431020173,2.64333398,3422.2,3420.6,0.8181]
[1732431020376,0.03366991,3422.1,3420.6,0.8181]
[1732431021070,3.03366991,3422.1,3420.6,0.8181]
[1732431021276,0.55,3422.0,3420.6,0.8181]
[1732431021673,0.03375167,3421.9,3420.6,0.8181]
[1732431021906,0.55,3421.8,3420.6,0.8181]
[1732431022274,0.55,3422.0,3420.6,0.8181]
[1732431022473,0.03375167,3421.7,3420.6,0.8181]
[1732431022688,0.55,3422.0,3420.6,0.8181]
[1732431022888,0.03375167,3421.6,3420.6,0.8181]
[1732431023120,0.55,3422.0,3420.6,0.8181]
[1732431023717,0.55,3421.8,3420.6,0.8181]
[1732431024026,0.03266547,3421.7,3420.8,0.8181]
[1732431024193,0.03266547,3421.7,3420.9,1.0015673]
[1732431024375,0.1502216,3422.4,3420.9,0.84732352]
[1732431024876,0.03278259,3422.3,3420.9,0.84732352]
[1732431025216,0.03278259,3422.3,3420.9,0.8181]
[1732431026481,0.55,3422.2,3420.9,0.8181]
[1732431026833,0.55,3422.2,3420.7,2.86]
[1732431026834,0.03286447,3422.1,3421.1,0.8181]
[1732431026989,0.55,3422.0,3421.1,0.8181]
[1732431027516,0.55,3422.1,3421.1,0.8181]
[1732431027725,0.03286447,3421.9,3421.1,0.8181]
[1732431027899,0.9614,3422.1,3421.1,0.8181]
[1732431028108,0.03286447,3421.8,3421.1,0.8181]
[1732431028420,0.03282915,3421.7,3421.1,0.8181]
[1732431028786,0.9614,3422.1,3421.1,0.8181]
[1732431028994,0.03282755,3421.6,3421.1,0.8181]
[1732431029187,0.9614,3422.1,3421.1,0.8181]
[1732431029522,0.03282755,3421.5,3421.1,0.8181]
[1732431029725,0.9614,3422.1,3421.1,0.8181]
[1732431030233,0.55,3421.9,3421.1,0.8181]
[1732431030877,0.55,3421.7,3421.1,0.8181]
[1732431031324,0.55,3422.0,3421.1,0.8181]
[1732431031530,0.03282755,3421.6,3421.1,0.8181]
[1732431031691,0.55,3422.0,3421.1,0.8181]
[1732431032326,0.55,3421.8,3421.1,0.8181]
[1732431032520,0.0639515,3421.9,3421.1,0.8181]
[1732431032731,0.4114,3422.5,3421.1,0.8181]
[1732431032892,0.0639515,3421.8,3421.1,0.8181]
[1732431033088,0.4114,3422.5,3421.1,0.8181]
[1732431033627,0.0639515,3422.3,3421.1,0.8181]
[1732431033924,0.55,3422.2,3421.1,0.8181]
[1732431034311,0.55,3422.3,3421.1,0.8181]
[1732431034835,0.55,3422.1,3421.1,0.8181]
[1732431035352,0.0639515,3422.0,3421.1,0.8181]
[1732431035648,0.55,3421.9,3421.1,0.8181]
[1732431035863,0.6139515,3421.9,3421.1,0.8181]
[1732431037857,1.0253515,3421.9,3421.1,0.8181]
[1732431039153,0.6139515,3421.9,3421.1,0.8181]
[1732431044436,0.98134956,3421.8,3421.1,0.8181]
[1732431044641,0.55,3421.7,3421.1,0.8181]
[1732431044865,0.61183816,3421.7,3421.1,0.8181]
[1732431046097,0.61183816,3421.7,3420.9,0.8317]
[1732431046593,0.55,3421.4,3420.9,0.8317]
[1732431046771,0.55,3421.6,3420.9,0.8317]
[1732431046972,0.55,3421.8,3420.9,0.8317]
[1732431047300,0.55,3421.6,3420.9,0.8317]
[1732431047868,0.06183816,3421.5,3420.9,0.8317]
[1732431049398,0.55,3421.4,3420.9,0.8317]
[1732431050277,0.06183816,3421.3,3420.9,0.8317]
[1732431053781,0.00249817,3421.8,3420.9,0.8317]
[1732431054126,0.05970562,3421.7,3420.9,0.8317]
[1732431054790,0.55,3421.6,3420.9,0.8317]
[1732431055417,0.55,3421.4,3420.9,0.8317]
[1732431055977,0.05970562,3421.3,3420.9,0.8317]
[1732431056714,0.00249817,3421.8,3420.9,0.8317]
[1732431057077,0.55,3421.6,3420.9,0.8317]
[1732431057595,0.05970562,3421.5,3420.9,0.8317]
[1732431058925,0.55,3421.4,3420.9,0.8317]
[1732431059332,0.55,3421.6,3420.9,0.8317]
[1732431059503,0.55,3421.2,3420.9,0.8317]
[1732431059846,0.05970562,3421.1,3420.9,0.8317]
[1732431061701,0.00249817,3421.8,3420.9,0.8317]
[1732431062103,0.55,3421.6,3420.9,0.8317]
[1732431062704,0.55,3421.4,3420.9,0.8317]
[1732431063309,0.05970562,3421.3,3420.9,0.8317]
[1732431065666,0.00249817,3421.8,3420.9,0.8317]
[1732431066025,0.05970562,3421.7,3420.9,0.8317]
[1732431066750,0.55,3421.6,3420.9,0.8317]
[1732431066918,0.05777208,3421.5,3420.9,0.8317]
[1732431072144,0.55,3421.4,3420.9,0.8317]
[1732431072352,0.05775422,3421.3,3420.9,0.8317]